Cogmind - Beta 17 @@@ ROGUE MODE // 2026.07.05 @ 21:28:57 Player: hanzu Result: Destroyed by IB-XCE(R) with Subdweller Machine Gun Performance ------------- Evolutions (0) 0 Regions Visited (2) 400 Robots Destroyed (19) 95 Value Destroyed (593) 593 Prototype IDs (2) 40 Alien Tech Used (0) 0 Bonus (0) 0 TOTAL SCORE: 1128 Bonus ------- None Cogmind --------- Core Integrity 0/250 Matter 225/300 Energy 29/100 System Corruption 0% Temperature Cool (0) Movement Core (200) Ox3 Location -10/Subcaves Parts ------- > --- POWER (1) -------- (None) > --- PROPULSION (2) --- (None) > --- UTILITY (2) ------ Medium Storage Unit Core Shielding > --- WEAPON (2) ------- Light Assault Rifle > --- INVENTORY (10) --- Heat Sink Heat Sink Large Matter Pod (150) Visual Processing Unit Light Armor Plating Medium Laser Beam Cannon Subdweller Beam Cannon Peak State ------------ > --- POWER ------------ Ion Engine > --- PROPULSION ------- Light Treads Light Treads > --- UTILITY ---------- Heat Sink Medium Storage Unit > --- WEAPON ----------- Beam Cannon Battle Cannon > --- INVENTORY -------- Ion Engine Heat Sink Large Matter Pod Visual Processing Unit Core Shielding Light Armor Plating Medium Laser Medium Laser Subdweller Beam Cannon Light Assault Rifle [Rating: 9] Favorites ----------- Power Ion Engine Engine Ion Engine Propulsion Light Treads Treads Light Treads Utility Heat Sink Device Heat Sink Storage Medium Storage Unit Protection Core Shielding Weapon Beam Cannon Energy Gun Medium Laser Energy Cannon Beam Cannon Ballistic Gun Light Assault Rifle Ballistic Cannon Battle Cannon Build | -11 -10 -10 ------- Run | Yrd Mat Sub Slots Evolved . | . . . Power . | . . . Propulsion . | . . . Utility . | . . . Weapon . | . . . Parts Attached 19 | 6 6 7 Power 3 | 1 1 1 Engine 3 | 1 1 1 Core . | . . . Reactor . | . . . Propulsion 2 | 2 . . Treads 2 | 2 . . Leg . | . . . Wheel . | . . . Hover . | . . . Flight . | . . . Utility 5 | 1 3 1 Device 2 | . 2 . Storage 2 | 1 1 . Processor . | . . . Hackware . | . . . Protection 1 | . . 1 Artifact . | . . . Weapon 9 | 2 2 5 Energy Gun 2 | 1 . 1 Energy Cannon 3 | . 1 2 Ballistic Gun 3 | 1 1 1 Ballistic Cannon 1 | . . 1 Launcher . | . . . Special Weapon . | . . . Impact Weapon . | . . . Slashing Weapon . | . . . Piercing Weapon . | . . . Special Melee Weapon . | . . . Unidentified Prototypes . | . . . Parts Lost 6 | . . 6 Power 2 | . . 2 Propulsion 2 | . . 2 Utility . | . . . Weapon 2 | . . 2 Highest Loss Streak 4 | . . 4 To Critical Strikes . | . . . Average Backups 7 | . 7 9 Power . | . 1 . Propulsion . | . . . Utility 3 | . 2 5 Weapon 3 | . 3 3 Tool/Special . | . . . Unused Backups 7 | . 2 5 Power . | . . . Propulsion . | . . . Utility 5 | . 1 4 Weapon 2 | . 1 1 Tool/Special . | . . . Average Slot Usage (%) 94 | . 94 94 Engine 13 | . 12 13 Treads 25 | . 26 23 Device 12 | . 11 14 Storage 14 | . 14 14 Energy Cannon 14 | . 13 15 Ballistic Gun 9 | . 14 5 Ballistic Cannon 3 | . . 6 Peak Build Rating 9 | 6 8 9 Average Rating 7 | 4 6 8 On Entrance 4 | . 6 8 Avg Prop Armor Cover (%) . | . . . Naked Turns . | . . . Heaviest Build 32 | 13 20 32 Greatest Support 40 | 40 40 40 Greatest Overweight (x) 3 | 3 . 1 Average Overweight (x) . | . . . Largest Inventory Capacity 10 | 8 10 10 Average Capacity 9 | 7 9 10 Most Carried 10 | 2 10 10 Average Carried 7 | . 7 9 Final Capacity 10 | 8 10 10 Final Carried 10 | 2 10 8 Class Distribution -------------------- 82% | Mutant 17% | Scavenger-Mutant Dominant Class ---------------- Mutant | -10/Materials Mutant | -10/Subcaves Resources | -11 -10 -10 ----------- Run | Yrd Mat Sub Matter Collected 811 | 239 244 328 Remotely . | . . . Salvage Created 698 | . 426 272 Parts 36 | . 21 15 Haulers Intercepted 2 | . 2 . Recyclers Shooed . | . . . Parts Field Recycled . | . . . Retrieved Matter . | . . . Parts Self-Destructed 4 | . . 4 Prevented . | . . . Parts Restored . | . . . Kills | -11 -10 -10 ------- Run | Yrd Mat Sub Combat Hostiles Destroyed 14 | . 6 8 Guns 2 | . 1 1 Cannons 10 | . 5 5 Classes Destroyed 5 | . 4 1 Tunneler 1 | . 1 . Hauler 2 | . 2 . Watcher 2 | . 2 . Grunt 6 | . 6 . Subdweller 8 | . . 8 Best Kill Streak 3 | . 3 2 Combat Bots Only 3 | . 3 2 Max Kills in Single Turn 1 | . 1 1 Gunslinging . | . . . Exploded . | . . . Melee . | . . . Uniques/NPCs Destroyed . | . . . Combat | -11 -10 -10 -------- Run | Yrd Mat Sub Hostile Shots Fired 103 | . 53 50 Missed 36 | . 21 15 Hits 67 | . 32 35 Projectile 67 | . 32 35 AOE 1 | . . 1 Damage Taken 1410 | . 435 975 Core 269 | . 12 257 Absorbed by Shields . | . . . Redirected to Shielding 7 | . . 7 Regen/Repaired (Parts) 224 | . 224 . Core Remaining (%) 100 | 100 . . Volleys Fired 96 | . 43 53 Largest 2 | . 2 2 Hottest 160 | . 80 160 Shots Fired 175 | . 81 94 Gun 62 | . 43 19 Cannon 113 | . 38 75 Launcher . | . . . Special . | . . . Kinetic 86 | . 43 43 Thermal 89 | . 38 51 Explosive . | . . . Electromagnetic . | . . . Robot Hit Streak 17 | . 9 17 Robot Miss Streak 4 | . 4 1 Penetration Max . | . . . Secondary Targets . | . . . Shots Hit Robots 107 | . 49 58 Core Hits 32 | . 19 13 Critical Kills 2 | . . 2 Critical Parts Destroyed 1 | . 1 . Critical Strikes 3 | . 1 2 Meltdown 2 | . . 2 Destroy 1 | . 1 . Melee Attacks . | . . . Impact . | . . . Slashing . | . . . Piercing . | . . . Sneak Attacks . | . . . Combat Hostiles . | . . . Follow-up Attacks . | . . . Damage Inflicted 1523 | . 659 864 Guns 302 | . 177 125 Cannons 1221 | . 482 739 Explosions . | . . . Melee . | . . . Ramming . | . . . Kinetic 526 | . 177 349 Thermal 997 | . 482 515 Explosive . | . . . Electromagnetic . | . . . Impact . | . . . Slashing . | . . . Piercing . | . . . Highest Corruption . | . . . Average Corruption . | . . . Corruption Purged . | . . . Corruption Blocked . | . . . Overload Shots . | . . . Overflow Damage . | . . . Projectiles . | . . . Explosions . | . . . Melee . | . . . Knockbacks 4 | . . 4 Impact . | . . . Kinetic 4 | . . 4 Secondary . | . . . Self-Inflicted Damage . | . . . Shots . | . . . Rammed . | . . . Targets Rammed . | . . . Kicked . | . . . Crushed . | . . . Highest Temperature 254 | . 254 31 Average Temperature 49 | . 54 10 Received Heat Transfer 366 | . 222 144 Effects 2 | . 2 . Interference 2 | . 2 . Siege Activations . | . . . Martial Activations . | . . . Shielding Activations . | . . . Robots Disrupted . | . . . Combat Hostiles . | . . . Robots Corrupted . | . . . Combat Hostiles . | . . . Parts Fried . | . . . Impact Corruptions . | . . . Robots Melted 2 | . . 2 Combat Hostiles 2 | . . 2 Parts Melted 7 | . 1 6 Heat Transferred 1924 | . 999 925 Parts Sabotaged . | . . . Parts Stolen . | . . . Parts Stripped . | . . . Power Chain Reactions . | . . . Alert | -11 -10 -10 ------- Run | Yrd Mat Sub Maximum Alert Level . | . . . Low Security (%) 100 | 100 100 . Level 1 . | . . . Level 2 . | . . . Level 3 . | . . . Level 4 . | . . . Level 5 . | . . . High Security . | . . . Max Security . | . . . Peak Influence 120 | . 120 . Initial . | . . . Average 23 | . 25 . Influence Increases 185 | . 185 . Destroy 0b10 Robot/C 120 | . 120 . Destroy 0b10 Robot/NC 25 | . 25 . Destroy Leader 28 | . 28 . Successful Hack 12 | . 12 . Influence Decreases 185 | . 185 . Time Decay 181 | . 181 . Purge Threat 4 | . 4 . Squads Dispatched 1 | . 1 . Investigation 1 | . 1 . Extermination . | . . . Reinforcement . | . . . Assault . | . . . Garrison . | . . . Intercept . | . . . Searches Triggered . | . . . Construction Impeded . | . . . Haulers Reinforced . | . . . Active Scanning Responses . | . . . Cargo Convoy Interrupts . | . . . Stealth | -11 -10 -10 --------- Run | Yrd Mat Sub Distress Signals 1 | . 1 . Communications Jammed . | . . . Distress Signals . | . . . Times Spotted 19 | . 10 9 Peak Tracking Total 4 | . 4 2 Tactical Retreats . | . . . Traps | -11 -10 -10 ------- Run | Yrd Mat Sub Traps Triggered 6 | . 3 3 Indirectly . | . . . Trap Hack Attempts . | . . . Triggered . | . . . Disarmed . | . . . Reprogrammed . | . . . Reused . | . . . Traps Extracted . | . . . Installed . | . . . Triggered . | . . . Machines | -11 -10 -10 ---------- Run | Yrd Mat Sub Machines Disabled . | . . . Max in Single Turn . | . . . Machines Repaired . | . . . Machines Dismantled . | . . . Machines Sabotaged . | . . . Overloaded Fab Kills . | . . . Hacking | -11 -10 -10 --------- Run | Yrd Mat Sub Machines Accessed 4 | . 4 . Terminals 3 | . 3 . Fabricators . | . . . Repair Stations 1 | . 1 . Recycling Units . | . . . Scanalyzers . | . . . Garrison Access . | . . . Total Hacks 20 | . 20 . Successful 12 | . 12 . Failed 7 | . 7 . Catastrophic 1 | . 1 . Database Lockouts 1 | . 1 . Manual 13 | . 13 . Terminals 15 | . 15 . Fabricators . | . . . Repair Stations 5 | . 5 . Recycling Units . | . . . Scanalyzers . | . . . Garrison Access . | . . . Terminal Hacks 6 | . 6 . Robot Analysis 1 | . 1 . Prototype ID Bank 1 | . 1 . Unreport Threat 1 | . 1 . Locate Traps 1 | . 1 . Hauler Manifests 1 | . 1 . Zone Layout 1 | . 1 . Fabricator Hacks . | . . . Repair Station Hacks 4 | . 4 . Scan Component 2 | . 2 . Repair 2 | . 2 . Recycling Unit Hacks . | . . . Scanalyzer . | . . . Garrison Access Hacks . | . . . Unauthorized Hacks 2 | . 2 . Terminals 2 | . 2 . Botnet 2 | . 2 . Fabricators . | . . . Repair Stations . | . . . Recycling Units . | . . . Scanalyzers . | . . . Garrison Access . | . . . Data Cores Recovered . | . . . Used . | . . . Hacking Detections 4 | . 4 . Full Trace Events 1 | . 1 . Feedback Events . | . . . Feedback Blocked . | . . . Robot Schematics Acquired . | . . . Robots Built . | . . . Authchips . | . . . Time . | . . . Total Robot Build Rating . | . . . Part Schematics Acquired . | . . . Parts Built . | . . . Authchips . | . . . Time . | . . . Total Part Build Rating . | . . . Part Studies Acquired . | . . . Parts Repaired 2 | . 2 . Time 52 | . 52 . Parts Recycled . | . . . Recycled Matter . | . . . Retrieved Matter . | . . . Retrieved Components . | . . . Parts Scanalyzed . | . . . Part Schematics Acquired . | . . . Parts Damaged . | . . . Bothacking | -11 -10 -10 ------------ Run | Yrd Mat Sub Used RIF Installer . | . . . Robots Hacked . | . . . Non-combat . | . . . Combat . | . . . Robot Hacks Applied . | . . . Relay Couplers Released . | . . . Fabnet Peak Effective % . | . . . Robots Rewired . | . . . Allies Hacked . | . . . Hacks Repelled . | . . . Allies | -11 -10 -10 -------- Run | Yrd Mat Sub Total Allies . | . . . Largest Group . | . . . Highest-Rated Group . | . . . Highest-Rated Ally . | . . . Total Orders . | . . . Ally Attacks . | . . . Total Damage . | . . . Kills . | . . . Allies Corrupted . | . . . Allies Melted . | . . . Intel | -11 -10 -10 ------- Run | Yrd Mat Sub Active Infowar (turns) . | . . . Robot Analysis Total 1 | . 1 . Derelict Logs Recovered . | . . . Drone Launches . | . . . Drone Recoveries . | . . . Exploration | -11 -10 -10 ------------- Run | Yrd Mat Sub Turns Passed 1686 | 88 742 856 Spaces Moved 785 | 52 341 392 Core 16 | 16 . . Treads 769 | 36 341 392 Legs . | . . . Wheels . | . . . Hover . | . . . Flight . | . . . Fastest Speed 50 | 50 160 160 Average Speed 165 | 150 160 173 Slowest Speed 240 | 200 160 240 Overloaded Moves . | . . . Propulsion Burnouts . | . . . Robots Hopped . | . . . Potential Cave-ins . | . . . Cave-ins Triggered . | . . . Exploration Rate (%) 33 | 3 61 35 Regions Visited 2 Branch Regions 1 Pre-discovered Areas . | . . . Known Exits Taken . | . . . Unknown Exits Taken 2 | 1 1 . Scrap Searched . | . . . Spaces Dug . | . . . Terrain Destroyed 1 | . . 1 Melee . | . . . Projectile 1 | . . 1 AOE . | . . . Terrain Rammed . | . . . Walls Destroyed . | . . . Machines Disabled . | . . . Actions | -11 -10 -10 --------- Run | Yrd Mat Sub Total 996 | 59 464 473 Wait 66 | . 55 11 Move 783 | 51 340 392 Hop . | . . . Pick Up 14 | 2 9 3 Fast Attach 14 | 6 8 . Attach 3 | . . 3 Detach 1 | . 1 . Swap 11 | . 3 8 Drop 8 | . 5 3 Fire 96 | . 43 53 Melee . | . . . Ram . | . . . Kick . | . . . Crush . | . . . Escape Stasis . | . . . Rewire . | . . . Trap . | . . . Miscellaneous . | . . . Route ------- -11/Scrapyard -10/Materials (discovered 5 exits: [*Mat x2] / [*Min x2] / [*Sub]) -10/Subcaves History --------- Turn | Location | Event 19 | -11/Scrapyard | Discovered new exit (range 15) 89 | -11/Scrapyard | Entered Materials 272 | -10/Materials | Discovered new exit (range 16) 297 | -10/Materials | Discovered new exit (range 16) 321 | -10/Materials | Build established: Mutant 406 | -10/Materials | Central database locked down 427 | -10/Materials | Discovered new exit (range 13) 557 | -10/Materials | Discovered new exit (range 13) 654 | -10/Materials | Repaired Lgt. Treads 683 | -10/Materials | Repaired Lgt. Treads 817 | -10/Materials | Discovered new exit (range 9) 831 | -10/Materials | Entered Subcaves 1141 | -10/Subcaves | A swath of the cavern ceiling suddenly collapsed 1654 | -10/Subcaves | Core integrity fell below 50% 1678 | -10/Subcaves | Core integrity fell below 20% 1687 | -10/Subcaves | Destroyed by IB-XCE(R) with Subdweller Machine Gun Last Messages --------------- 01452_ ON-6TQ(R) knocked back. 01455_ ON-6TQ(R) destroyed. 01456_ Lgt. Treads destroyed. 01467_ 4V-SWI(R) knocked back. 01473_ 4V-SWI(R) destroyed. 01478_ Acquired 2 matter. 01480_ Acquired 13 matter. 01488_ Subatomizers dissect the Sub. Laser. 01491_ Acquired 8 matter. 01498_ Subatomizers dissect the Sub. Laser. 01593_ Acquired 34 matter. 01598_ Subatomizers dissect the Sub. Laser. 01649_ Battle Cannon destroyed. 01657_ Ion Engine destroyed. 01659_ Lgt. Treads destroyed. 01665_ RE-V2X(R) suffers critical hit (Meltdown). 01665_ Sub. Optics melted. 01665_ Scrap Shield melted. 01672_ IB-XCE(R) affixes Scrap Shield Fragment to Scrap Shield. 01675_ Sub. Beam Cannon destroyed. Map ----- +----------------------------------------------------+ | ????????????????????????# "" " "#####???????? | | ????????????????????????# " """ #???????? | | ????????????????????????# # " """ ###?????? | | ???????????????????????# #"""" # ## #?????? | | ???????????????????????# ?#"" #### ##?????? | | ???????????????????????## ??#### #??# #?????? | | ???????????????????????# ??????## ##?# # ##?????? | | ???????????????????????#????????### #### #??????? | | ?????????????????????????????????# #?# #??????? | | ??????????????????????????????????# #?# ###????? | | ??????????????????????????????????# #### " #????? | | ????????????????????????????????### "" "" #????? | | ????????????????????????????? ### """"" "" #????? | | ????????????????????????##??? " """ " ###"##???? | | ?????????????????????????"??? """"" ##??" #???? | | ???????????????????????? " ???####[ % ##?##" #???? | | ?????????????????????????" #????##&! ####"" #???? | | ??????????????????????????#"##### &&& ##"""" #???? | | ?????????????????????#????## " " """" ""#???? | | ????????????????????""##??# "" """" " ""#???? | | ?????????????????? """"??#"" "###"" ""#???? | | ???????????????????"""""#### ###?# #### "##???? | | ????????????????????#"" ## "#???# #??## ##????? | | ????????????????????#" """ ""#???# ###?# #####??? | | ????????????????????#"" # #???## ######" #??? | | ????????????????????#"%R=@####????# #### #??? | | ????????????????????#]## #????# #???? | | ???????????????????" ??# ??### #???? | | ?????????????????"""??# #####?# #???? | | ?????????????????#????#####?????# #???? | | ????????????????????????????????## ### #???? | | ?????????????????????????????????# #####?## #???? | | ?????????????????????????????????####???????##???? | | ?????????????????????????????????????????????????? | | ?????????????????????????????????????????????????? | | ?????????????????????????????????????????????????? | | ?????????????????????????????????????????????????? | | ?????????????????????????????????????????????????? | | ?????????????????????????????????????????????????? | | ?????????????????????????????????????????????????? | | ?????????????????????????????????????????????????? | | ?????????????????????????????????????????????????? | | ?????????????????????????????????????????????????? | | ?????????????????????????????????????????????????? | | ?????????????????????????????????????????????????? | | ?????????????????????????????????????????????????? | | ?????????????????????????????????????????????????? | | ?????????????????????????????????????????????????? | | ?????????????????????????????????????????????????? | | ?????????????????????????????????????????????????? | +----------------------------------------------------+ Best States ------------- Heat Dissipation 35 Energy Generation 10 Energy Capacity 250 Matter Stores 300 Matter Capacity 300 Sight Range 16 Terrain Scan Density 10 Evasion (%) 40 Recoil Reduction 2 Item Schematics ----------------- None Robot Schematics ------------------ None Fabricated ------------ Nothing Repaired ---------- Lgt. Treads | 18% | -10/Materials Lgt. Treads | 21% | -10/Materials Studied --------- None Alien Tech Used ----------------- None Achievements -------------- None Challenges ------------ None Game ------ Seed PotentialWeaponsFrame Manual? 0 Play Time 00:13:20 Cumulative 211.3 hours Start 2026.07.05 @ 21:17:48 End 2026.07.05 @ 21:28:57 Sessions 1 Manual Loads 0 Difficulty Rogue Special Mode None Game No. 194 Rogue 194 Adventurer 0 Explorer 0 Win Type - Total 3 Types 3/0/0/0/0/0/0/0/0/0 Lore% 55 Gallery% 60 Achievement% 34 Wizard Run 0 Options --------- Layout 0 ASCII 0 Keyboard 0 Movement Numpad Keybinds 0 Fullscreen 2 Font 18/SmallcapsGlow Map View 76x50 Zoom Use 0% Tactical HUD 1 Map Filters NONE Filters NONE Steam 1 RUN: 2f15c49c-e07b-41c8-baaf-08768becda5d